[Event "*** Titled Tuesday Blitz"]
[Site "Chess.com"]
[Date "2020.02.04"]
[Round "5"]
[White "DiamondCrusher22"]
[Black "Alexander_Moskalenko"]
[Result "0-1"]
[WhiteElo "2011"]
[BlackElo "2815"]
[TimeControl "180+2"]
[EndTime "14:06:19 PST"]
[Termination "Alexander_Moskalenko won by resignation"]

1. e4 {[%clk 0:03:01.9]} 1... c5 {[%clk 0:03:00.7]} 2. Nf3 {[%clk 0:03:02.7]}
2... d6 {[%clk 0:03:01.2]} 3. c3 {[%clk 0:03:01.7]} 3... Nf6 {[%clk 0:03:01.6]}
4. Be2 {[%clk 0:03:02.6]} 4... Nbd7 {[%clk 0:03:01.8]} 5. d3 {[%clk 0:03:02.2]}
5... b6 {[%clk 0:03:01.7]} 6. O-O {[%clk 0:03:02.3]} 6... Bb7 {[%clk 0:03:03.3]}
7. Re1 {[%clk 0:03:03.4]} 7... g6 {[%clk 0:03:03.9]} 8. Bf1 {[%clk 0:03:03.9]}
8... Bg7 {[%clk 0:03:05]} 9. Nbd2 {[%clk 0:03:04.4]} 9... O-O {[%clk 0:03:06.6]}
10. Qc2 {[%clk 0:03:03.6]} 10... a6 {[%clk 0:03:07.2]} 11. a4 {[%clk 0:03:01.8]}
11... e5 {[%clk 0:03:08.5]} 12. Nc4 {[%clk 0:03:01.5]} 12... Qc7 {[%clk
0:03:07.8]} 13. Bg5 {[%clk 0:03:00.3]} 13... Rfe8 {[%clk 0:03:08.9]} 14. Rad1
{[%clk 0:02:56.4]} 14... h6 {[%clk 0:03:10.3]} 15. Bh4 {[%clk 0:02:56.2]} 15...
b5 {[%clk 0:03:07.9]} 16. Na3 {[%clk 0:02:54.5]} 16... Bc6 {[%clk 0:03:08.9]}
17. axb5 {[%clk 0:02:53.2]} 17... axb5 {[%clk 0:03:10.8]} 18. c4 {[%clk
0:02:46.4]} 18... b4 {[%clk 0:03:10.4]} 19. Nb1 {[%clk 0:02:42.9]} 19... Ba4
{[%clk 0:03:08.6]} 20. b3 {[%clk 0:02:43.8]} 20... Bc6 {[%clk 0:03:10.3]} 21.
Nbd2 {[%clk 0:02:35.7]} 21... Nh7 {[%clk 0:03:10.4]} 22. h3 {[%clk 0:02:28.9]}
22... h5 {[%clk 0:03:04.2]} 23. Ng5 {[%clk 0:01:54]} 23... Nhf8 {[%clk
0:03:00.2]} 24. Ra1 {[%clk 0:01:41.1]} 24... Bh6 {[%clk 0:02:56.3]} 25. Ngf3
{[%clk 0:01:38.1]} 25... Ne6 {[%clk 0:02:56.5]} 26. Be2 {[%clk 0:01:29.2]} 26...
Ra5 {[%clk 0:02:57]} 27. Nf1 {[%clk 0:01:24.5]} 27... Rea8 {[%clk 0:02:57.2]}
28. Qb2 {[%clk 0:01:25.1]} 28... Nd4 {[%clk 0:02:54.1]} 29. Nxd4 {[%clk
0:01:16.5]} 29... cxd4 {[%clk 0:02:56]} 30. Rxa5 {[%clk 0:01:13.8]} 30... Qxa5
{[%clk 0:02:55.4]} 31. g4 {[%clk 0:01:04]} 31... hxg4 {[%clk 0:02:55.6]} 32.
hxg4 {[%clk 0:01:05]} 32... Nc5 {[%clk 0:02:56.9]} 33. g5 {[%clk 0:01:04.3]}
33... Bg7 {[%clk 0:02:57]} 34. Nd2 {[%clk 0:01:02.3]} 34... Qa2 {[%clk
0:02:56.8]} 35. Rb1 {[%clk 0:01:02]} 35... Bf8 {[%clk 0:02:56.3]} 36. Kf1 {[%clk
0:00:54.3]} 36... Be7 {[%clk 0:02:51.1]} 37. Ke1 {[%clk 0:00:51.9]} 37... Qxb2
{[%clk 0:02:35.9]} 38. Rxb2 {[%clk 0:00:52.2]} 38... Ra1+ {[%clk 0:02:37.5]} 39.
Nb1 {[%clk 0:00:42.5]} 39... Ne6 {[%clk 0:02:33.3]} 40. Kd2 {[%clk 0:00:34.2]}
40... Bxg5+ {[%clk 0:02:33.2]} 41. Bxg5 {[%clk 0:00:33.1]} 41... Nxg5 {[%clk
0:02:35.1]} 42. Kc2 {[%clk 0:00:32.3]} 42... Ne6 {[%clk 0:02:35.8]} 43. Nd2
{[%clk 0:00:32]} 43... Kg7 {[%clk 0:02:34.6]} 44. Rb1 {[%clk 0:00:32.4]} 44...
Ra2+ {[%clk 0:02:35]} 45. Rb2 {[%clk 0:00:31.6]} 45... Ra8 {[%clk 0:02:36.5]}
46. Kb1 {[%clk 0:00:24.1]} 46... Nc5 {[%clk 0:02:31.2]} 47. Ra2 {[%clk
0:00:23.4]} 47... Rxa2 {[%clk 0:02:32.8]} 48. Kxa2 {[%clk 0:00:24.2]} 48... Bd7
{[%clk 0:02:34.7]} 49. Kb2 {[%clk 0:00:23]} 49... f5 {[%clk 0:02:35.7]} 50. f3
{[%clk 0:00:18.8]} 50... Kh6 {[%clk 0:02:36]} 51. Kc2 {[%clk 0:00:18.6]} 51...
Kg5 {[%clk 0:02:37.1]} 52. Kd1 {[%clk 0:00:19.2]} 52... Kf4 {[%clk 0:02:29.3]}
53. Ke1 {[%clk 0:00:19.8]} 53... Kg3 {[%clk 0:02:30.6]} 54. Nf1+ {[%clk
0:00:15.1]} 54... Kg2 {[%clk 0:02:31.2]} 55. Nd2 {[%clk 0:00:15.7]} 55... Be6
{[%clk 0:02:30.4]} 56. Bf1+ {[%clk 0:00:15.6]} 56... Kg3 {[%clk 0:02:31.5]} 57.
Be2 {[%clk 0:00:15.1]} 57... fxe4 {[%clk 0:02:02.2]} 58. fxe4 {[%clk 0:00:12.4]}
58... Bh3 {[%clk 0:02:03]} 59. Kd1 {[%clk 0:00:05.4]} 59... Bg2 {[%clk 0:02:04]}
60. Ke1 {[%clk 0:00:05.6]} 60... g5 {[%clk 0:02:04.1]} 61. Bf1 {[%clk
0:00:03.5]} 61... Bxf1 {[%clk 0:02:03.5]} 62. Nxf1+ {[%clk 0:00:04.7]} 62... Kf3
{[%clk 0:02:04.5]} 63. Kd2 {[%clk 0:00:03.5]} 63... g4 {[%clk 0:02:05.5]} 64.
Nh2+ {[%clk 0:00:03.6]} 64... Kg3 {[%clk 0:02:07.1]} 65. Nf1+ {[%clk 0:00:04.6]}
65... Kg2 {[%clk 0:02:08.6]} 66. Ke2 {[%clk 0:00:04.7]} 66... Nxd3 {[%clk
0:02:10.2]} 67. Ng3 {[%clk 0:00:04.9]} 67... Nf4+ {[%clk 0:02:12.1]} 68. Kd2
{[%clk 0:00:05.5]} 68... Kxg3 {[%clk 0:02:14]} 0-1

[Event "*** Titled Tuesday Blitz"]
[Site "Chess.com"]
[Date "2020.02.04"]
[Round "5"]
[White "FredddieCroderg"]
[Black "Arathorn2"]
[Result "0-1"]
[WhiteElo "2092"]
[BlackElo "2247"]
[TimeControl "180+2"]
[EndTime "14:06:25 PST"]
[Termination "Arathorn2 won by resignation"]

1. d4 {[%clk 0:03:01.9]} 1... Nf6 {[%clk 0:03:00.3]} 2. c4 {[%clk 0:03:02.6]}
2... g6 {[%clk 0:03:00.7]} 3. Nc3 {[%clk 0:03:02.8]} 3... Bg7 {[%clk 0:03:01.5]}
4. e4 {[%clk 0:03:02.3]} 4... d6 {[%clk 0:03:01.1]} 5. h3 {[%clk 0:03:03.3]}
5... O-O {[%clk 0:03:01.7]} 6. Nf3 {[%clk 0:03:04.6]} 6... e5 {[%clk 0:03:02.5]}
7. d5 {[%clk 0:03:04.8]} 7... Nh5 {[%clk 0:02:57.9]} 8. Be2 {[%clk 0:02:59.7]}
8... f5 {[%clk 0:02:57.3]} 9. exf5 {[%clk 0:02:56.4]} 9... gxf5 {[%clk
0:02:48.2]} 10. g4 {[%clk 0:02:46.9]} 10... Nf4 {[%clk 0:02:44.8]} 11. Bxf4
{[%clk 0:02:31.9]} 11... exf4 {[%clk 0:02:44.9]} 12. g5 {[%clk 0:02:32.8]} 12...
Na6 {[%clk 0:02:40.2]} 13. h4 {[%clk 0:02:27.4]} 13... Nc5 {[%clk 0:02:40.2]}
14. Qc2 {[%clk 0:02:20]} 14... Re8 {[%clk 0:02:37.3]} 15. O-O-O {[%clk
0:02:14.1]} 15... Ne4 {[%clk 0:02:02.8]} 16. Bd3 {[%clk 0:02:12.4]} 16... Qe7
{[%clk 0:01:47.5]} 17. Rde1 {[%clk 0:02:05.8]} 17... Bxc3 {[%clk 0:01:45.8]} 18.
bxc3 {[%clk 0:02:04.1]} 18... Bd7 {[%clk 0:01:33.8]} 19. h5 {[%clk 0:01:46.5]}
19... Qf7 {[%clk 0:01:21]} 20. g6 {[%clk 0:01:09.1]} 20... Qf6 {[%clk
0:01:21.2]} 21. Nd4 {[%clk 0:01:04.4]} 21... h6 {[%clk 0:01:10.4]} 22. Rhg1
{[%clk 0:00:51.3]} 22... c5 {[%clk 0:00:59.4]} 23. dxc6 {[%clk 0:00:45.8]} 23...
bxc6 {[%clk 0:00:59.7]} 24. Ne2 {[%clk 0:00:21.1]} 24... Nxf2 {[%clk 0:00:55.3]}
25. Ref1 {[%clk 0:00:21.4]} 25... Qh4 {[%clk 0:00:38.3]} 26. Rg2 {[%clk
0:00:20.6]} 26... Nxd3+ {[%clk 0:00:37.6]} 27. Qxd3 {[%clk 0:00:21.9]} 27...
Qxh5 {[%clk 0:00:35.6]} 28. Nxf4 {[%clk 0:00:23.3]} 28... Qh4 {[%clk 0:00:32]}
29. Rff2 {[%clk 0:00:22.8]} 29... Qh1+ {[%clk 0:00:27.8]} 30. Kc2 {[%clk
0:00:18.6]} 30... Qa1 {[%clk 0:00:25.7]} 31. Kb3 {[%clk 0:00:17.7]} 31... Rab8+
{[%clk 0:00:23.9]} 32. Ka3 {[%clk 0:00:19]} 32... Qc1+ {[%clk 0:00:23.8]} 33.
Rb2 {[%clk 0:00:20.4]} 33... Qxf4 {[%clk 0:00:18.5]} 34. c5 {[%clk 0:00:18.7]}
34... Rxb2 {[%clk 0:00:18.1]} 35. Kxb2 {[%clk 0:00:18.8]} 35... d5 {[%clk
0:00:18.8]} 36. Ka3 {[%clk 0:00:18.9]} 36... Qc4 {[%clk 0:00:17.9]} 37. Qc2
{[%clk 0:00:19.3]} 37... Qxc5+ {[%clk 0:00:17.5]} 38. Kb2 {[%clk 0:00:20.4]}
38... Rb8+ {[%clk 0:00:18.2]} 39. Kc1 {[%clk 0:00:21.4]} 39... Qe3+ {[%clk
0:00:18.3]} 40. Kd1 {[%clk 0:00:21.6]} 40... f4 {[%clk 0:00:17.4]} 41. c4 {[%clk
0:00:22.6]} 41... Qf3+ {[%clk 0:00:17.1]} 42. Ke1 {[%clk 0:00:22.8]} 42... Re8+
{[%clk 0:00:17.3]} 43. Re2 {[%clk 0:00:21.7]} 0-1

[Event "*** Titled Tuesday Blitz"]
[Site "Chess.com"]
[Date "2020.02.04"]
[Round "5"]
[White "vellottiwizard"]
[Black "masterofpuppets2"]
[Result "1-0"]
[WhiteElo "2672"]
[BlackElo "2468"]
[TimeControl "180+2"]
[EndTime "14:06:32 PST"]
[Termination "vellottiwizard won by resignation"]

1. Nf3 {[%clk 0:03:01.9]} 1... d5 {[%clk 0:03:00.6]} 2. g3 {[%clk 0:03:02.3]}
2... Nd7 {[%clk 0:03:01.5]} 3. Bg2 {[%clk 0:03:04.2]} 3... e5 {[%clk 0:03:02.2]}
4. d3 {[%clk 0:03:05.8]} 4... Ngf6 {[%clk 0:03:02.5]} 5. O-O {[%clk 0:03:07.4]}
5... Bd6 {[%clk 0:03:03.6]} 6. Nbd2 {[%clk 0:03:08.6]} 6... O-O {[%clk
0:03:04.1]} 7. e4 {[%clk 0:03:10.2]} 7... c6 {[%clk 0:03:05.4]} 8. c3 {[%clk
0:03:10.7]} 8... Re8 {[%clk 0:03:06.4]} 9. Qc2 {[%clk 0:03:11.9]} 9... a5 {[%clk
0:03:04.8]} 10. Rd1 {[%clk 0:03:12.3]} 10... Qc7 {[%clk 0:03:03.1]} 11. Nf1
{[%clk 0:03:00.6]} 11... Nc5 {[%clk 0:02:48.4]} 12. exd5 {[%clk 0:02:50.4]}
12... cxd5 {[%clk 0:02:36.8]} 13. d4 {[%clk 0:02:50.9]} 13... exd4 {[%clk
0:02:36.7]} 14. Nxd4 {[%clk 0:02:51.6]} 14... Bd7 {[%clk 0:02:33.3]} 15. Ne3
{[%clk 0:02:44.9]} 15... Bc6 {[%clk 0:02:26.4]} 16. Nef5 {[%clk 0:02:41.4]}
16... Be5 {[%clk 0:02:17.9]} 17. Be3 {[%clk 0:02:38]} 17... Nce4 {[%clk
0:02:06.7]} 18. f4 {[%clk 0:02:01]} 18... Bd6 {[%clk 0:02:05.1]} 19. Nxd6 {[%clk
0:01:58.5]} 19... Qxd6 {[%clk 0:01:58]} 20. Nf5 {[%clk 0:01:30.3]} 20... Qc7
{[%clk 0:01:56.5]} 21. Bd4 {[%clk 0:01:30.1]} 21... Bd7 {[%clk 0:01:42.7]} 22.
Ne3 {[%clk 0:01:29.1]} 22... Bc6 {[%clk 0:01:35.7]} 23. Re1 {[%clk 0:01:24.3]}
23... Rad8 {[%clk 0:01:21]} 24. Rad1 {[%clk 0:01:23]} 24... Qd7 {[%clk
0:01:15.8]} 25. c4 {[%clk 0:01:13.8]} 25... Qe6 {[%clk 0:00:57.3]} 26. cxd5
{[%clk 0:00:31.8]} 26... Nxd5 {[%clk 0:00:44.9]} 27. Nxd5 {[%clk 0:00:26.6]}
27... Bxd5 {[%clk 0:00:41.4]} 28. b3 {[%clk 0:00:27.4]} 28... f5 {[%clk
0:00:32.9]} 29. Qc7 {[%clk 0:00:26.2]} 29... Rd7 {[%clk 0:00:28.3]} 30. Qxa5
{[%clk 0:00:26.9]} 30... Rc8 {[%clk 0:00:27.4]} 31. Rc1 {[%clk 0:00:25.1]} 31...
Bc6 {[%clk 0:00:27.2]} 32. Qe5 {[%clk 0:00:19.1]} 32... Qxe5 {[%clk 0:00:28.1]}
33. Bxe5 {[%clk 0:00:21]} 33... Rd2 {[%clk 0:00:29.1]} 34. Bf1 {[%clk
0:00:19.3]} 34... Rxa2 {[%clk 0:00:23.3]} 35. b4 {[%clk 0:00:18.9]} 35... Kh8
{[%clk 0:00:21.5]} 36. b5 {[%clk 0:00:19.4]} 36... Bd7 {[%clk 0:00:22.5]} 37.
Rxc8+ {[%clk 0:00:20.6]} 37... Bxc8 {[%clk 0:00:23.9]} 38. Rc1 {[%clk
0:00:21.3]} 38... Ra8 {[%clk 0:00:24.2]} 39. Rc7 {[%clk 0:00:21.5]} 39... Nf6
{[%clk 0:00:25.4]} 40. Bc4 {[%clk 0:00:21.8]} 40... b6 {[%clk 0:00:23.6]} 41. h3
{[%clk 0:00:20.6]} 41... h6 {[%clk 0:00:24.2]} 42. Kf2 {[%clk 0:00:20.7]} 42...
Nh5 {[%clk 0:00:25]} 43. Kf3 {[%clk 0:00:19.5]} 43... Ra3+ {[%clk 0:00:23.2]}
44. Kf2 {[%clk 0:00:20.4]} 44... Ra8 {[%clk 0:00:23.5]} 45. Bd5 {[%clk
0:00:21.6]} 45... Rb8 {[%clk 0:00:21.5]} 46. Re7 {[%clk 0:00:21.4]} 1-0

[Event "*** Titled Tuesday Blitz"]
[Site "Chess.com"]
[Date "2020.02.04"]
[Round "5"]
[White "Sjakkerntobi"]
[Black "MikeSailer"]
[Result "1-0"]
[WhiteElo "2254"]
[BlackElo "2110"]
[TimeControl "180+2"]
[EndTime "14:06:34 PST"]
[Termination "Sjakkerntobi won on time"]

1. e4 {[%clk 0:03:00.7]} 1... d5 {[%clk 0:03:01]} 2. exd5 {[%clk 0:03:01.3]}
2... Qxd5 {[%clk 0:03:01.5]} 3. Nc3 {[%clk 0:03:03.2]} 3... Qd6 {[%clk
0:03:02.7]} 4. Nf3 {[%clk 0:03:03.8]} 4... Nf6 {[%clk 0:03:04.3]} 5. d4 {[%clk
0:03:03.7]} 5... c6 {[%clk 0:03:05.8]} 6. Bc4 {[%clk 0:03:04.7]} 6... Bg4 {[%clk
0:03:07.1]} 7. O-O {[%clk 0:03:02.6]} 7... e6 {[%clk 0:03:08.2]} 8. Be3 {[%clk
0:03:00.8]} 8... Be7 {[%clk 0:03:09.3]} 9. h3 {[%clk 0:03:02]} 9... Bh5 {[%clk
0:03:09.4]} 10. Re1 {[%clk 0:03:00.7]} 10... O-O {[%clk 0:03:09.8]} 11. Be2
{[%clk 0:02:55.2]} 11... Nbd7 {[%clk 0:03:06.6]} 12. Nd2 {[%clk 0:02:52.6]}
12... Bxe2 {[%clk 0:03:05.7]} 13. Qxe2 {[%clk 0:02:54.5]} 13... Nb6 {[%clk
0:03:06.1]} 14. Nc4 {[%clk 0:02:54.2]} 14... Nxc4 {[%clk 0:03:06.4]} 15. Qxc4
{[%clk 0:02:56.1]} 15... Nd5 {[%clk 0:03:06.9]} 16. Bd2 {[%clk 0:02:49.9]} 16...
Nxc3 {[%clk 0:03:07.1]} 17. Bxc3 {[%clk 0:02:51.8]} 17... Bf6 {[%clk 0:03:05.8]}
18. Rad1 {[%clk 0:02:52]} 18... Qd5 {[%clk 0:03:06.8]} 19. Qd3 {[%clk
0:02:48.1]} 19... Qxa2 {[%clk 0:03:04.5]} 20. b3 {[%clk 0:02:44.4]} 20... Qa3
{[%clk 0:03:04.6]} 21. b4 {[%clk 0:02:36.1]} 21... Qa2 {[%clk 0:02:55.6]} 22. d5
{[%clk 0:02:14.6]} 22... Qxd5 {[%clk 0:02:39.7]} 23. Qg3 {[%clk 0:02:05.5]}
23... Qf5 {[%clk 0:02:25.3]} 24. Rd7 {[%clk 0:02:03.2]} 24... Bxc3 {[%clk
0:02:17.7]} 25. Qxc3 {[%clk 0:02:03.3]} 25... Qb5 {[%clk 0:02:12.7]} 26. Re5
{[%clk 0:02:01.2]} 26... Qb6 {[%clk 0:02:07.1]} 27. Rg5 {[%clk 0:02:01.3]} 27...
g6 {[%clk 0:02:04.2]} 28. h4 {[%clk 0:02:01.7]} 28... Rad8 {[%clk 0:02:01.5]}
29. Re7 {[%clk 0:01:53.3]} 29... Rd1+ {[%clk 0:01:55.3]} 30. Kh2 {[%clk
0:01:53.7]} 30... Qxf2 {[%clk 0:01:46.6]} 31. Rg4 {[%clk 0:01:38.8]} 31... Qg1+
{[%clk 0:01:36.4]} 32. Kh3 {[%clk 0:01:29.4]} 32... Qh1+ {[%clk 0:01:34.6]} 33.
Kg3 {[%clk 0:01:30.7]} 33... Qe1+ {[%clk 0:00:57.3]} 34. Qxe1 {[%clk 0:01:30.2]}
34... Rxe1 {[%clk 0:00:58.2]} 35. Rxb7 {[%clk 0:01:31.1]} 35... Rc8 {[%clk
0:00:29.2]} 36. Rxa7 {[%clk 0:01:27.5]} 36... c5 {[%clk 0:00:30.3]} 37. b5
{[%clk 0:01:28.5]} 37... Rb1 {[%clk 0:00:21.9]} 38. c4 {[%clk 0:01:28.6]} 38...
Kg7 {[%clk 0:00:19.8]} 39. Rf4 {[%clk 0:01:28.6]} 39... Rf8 {[%clk 0:00:18.2]}
40. Rc7 {[%clk 0:01:28.9]} 40... Rb3+ {[%clk 0:00:17.1]} 41. Kh2 {[%clk
0:01:29.9]} 41... h6 {[%clk 0:00:17.5]} 42. Rxc5 {[%clk 0:01:30.5]} 42... f5
{[%clk 0:00:18]} 43. Rd4 {[%clk 0:01:29]} 43... g5 {[%clk 0:00:16.3]} 44. h5
{[%clk 0:01:25.2]} 44... Kf6 {[%clk 0:00:15.5]} 45. Rd7 {[%clk 0:01:23.6]} 45...
g4 {[%clk 0:00:15.8]} 46. Rc6 {[%clk 0:01:21.5]} 46... Re8 {[%clk 0:00:15.2]}
47. b6 {[%clk 0:01:19.7]} 47... Kg5 {[%clk 0:00:14.2]} 48. b7 {[%clk 0:01:18]}
48... Kh4 {[%clk 0:00:12.5]} 49. g3+ {[%clk 0:01:09.9]} 49... Rxg3 {[%clk
0:00:13.4]} 50. Rc8 {[%clk 0:01:10.3]} 50... Rh3+ {[%clk 0:00:09.1]} 51. Kg2
{[%clk 0:01:10.2]} 51... Rg3+ {[%clk 0:00:08.2]} 52. Kf2 {[%clk 0:01:10.5]}
52... Rf3+ {[%clk 0:00:08.2]} 53. Ke2 {[%clk 0:01:12]} 53... f4 {[%clk
0:00:04.2]} 54. Rxe8 {[%clk 0:01:12.1]} 54... Re3+ {[%clk 0:00:05.4]} 55. Kd2
{[%clk 0:01:12.5]} 55... g3 {[%clk 0:00:04.6]} 56. b8=Q {[%clk 0:01:12.7]} 1-0

[Event "*** Titled Tuesday Blitz"]
[Site "Chess.com"]
[Date "2020.02.04"]
[Round "5"]
[White "BeanScreen"]
[Black "Lagmantr"]
[Result "1-0"]
[WhiteElo "2590"]
[BlackElo "2735"]
[TimeControl "180+2"]
[EndTime "14:06:40 PST"]
[Termination "BeanScreen won by resignation"]

1. e4 {[%clk 0:03:01.6]} 1... c5 {[%clk 0:02:59.8]} 2. Nf3 {[%clk 0:03:02.6]}
2... d6 {[%clk 0:03:01.4]} 3. d4 {[%clk 0:03:04.1]} 3... cxd4 {[%clk 0:03:03.3]}
4. Nxd4 {[%clk 0:03:06]} 4... Nf6 {[%clk 0:03:04.5]} 5. Nc3 {[%clk 0:03:07.8]}
5... a6 {[%clk 0:03:05.9]} 6. Be3 {[%clk 0:03:09.4]} 6... e5 {[%clk 0:03:06.5]}
7. Nb3 {[%clk 0:03:10.9]} 7... Be6 {[%clk 0:03:04.7]} 8. h3 {[%clk 0:03:12.3]}
8... Be7 {[%clk 0:03:01.8]} 9. f4 {[%clk 0:03:13.2]} 9... Nc6 {[%clk 0:02:57]}
10. f5 {[%clk 0:03:11]} 10... Bxb3 {[%clk 0:02:57.9]} 11. axb3 {[%clk 0:03:12]}
11... Nb4 {[%clk 0:02:59]} 12. Bc4 {[%clk 0:02:46.1]} 12... Nxe4 {[%clk
0:02:57.1]} 13. Nxe4 {[%clk 0:02:36.8]} 13... d5 {[%clk 0:02:58.1]} 14. Bd3
{[%clk 0:02:34.9]} 14... Nxd3+ {[%clk 0:02:38.7]} 15. Qxd3 {[%clk 0:02:36.3]}
15... dxe4 {[%clk 0:02:39.4]} 16. Qxe4 {[%clk 0:02:38.1]} 16... Bh4+ {[%clk
0:02:38.4]} 17. Ke2 {[%clk 0:02:36.6]} 17... O-O {[%clk 0:02:38.6]} 18. Rhd1
{[%clk 0:02:34.8]} 18... Qf6 {[%clk 0:02:36.9]} 19. Rd7 {[%clk 0:02:22.4]} 19...
Bg5 {[%clk 0:02:34.1]} 20. Rad1 {[%clk 0:02:10]} 20... Bxe3 {[%clk 0:02:34.1]}
21. Kxe3 {[%clk 0:02:11.9]} 21... b5 {[%clk 0:02:12.2]} 22. R1d6 {[%clk
0:01:43.4]} 22... Qg5+ {[%clk 0:02:12.8]} 23. Kf3 {[%clk 0:01:45]} 23... Qc1
{[%clk 0:01:52.6]} 24. Rxf7 {[%clk 0:01:44.3]} 24... Qf1+ {[%clk 0:01:44.2]} 25.
Kg4 {[%clk 0:01:41.7]} 25... h5+ {[%clk 0:01:19.4]} 26. Kg5 {[%clk 0:01:07.1]}
26... Rxf7 {[%clk 0:01:06.3]} 27. Qxa8+ {[%clk 0:01:08.1]} 27... Kh7 {[%clk
0:01:07.6]} 28. Qe4 {[%clk 0:01:09.1]} 28... Qc1+ {[%clk 0:00:09.3]} 29. Kxh5
{[%clk 0:01:09.6]} 29... Qf4 {[%clk 0:00:06.7]} 30. Qxf4 {[%clk 0:01:08.5]}
30... exf4 {[%clk 0:00:08.6]} 31. Kg4 {[%clk 0:01:08.2]} 31... Re7 {[%clk
0:00:09.8]} 32. Rxa6 {[%clk 0:00:55.3]} 32... Re2 {[%clk 0:00:10.8]} 33. Rc6
{[%clk 0:00:56.5]} 33... Rf2 {[%clk 0:00:08.3]} 34. b4 {[%clk 0:00:51.4]} 34...
Kg8 {[%clk 0:00:09]} 35. c3 {[%clk 0:00:45.5]} 35... Rxg2+ {[%clk 0:00:08.1]}
36. Kxf4 {[%clk 0:00:46.7]} 36... Rxb2 {[%clk 0:00:10]} 37. Rc5 {[%clk
0:00:43.2]} 37... Rf2+ {[%clk 0:00:11]} 38. Ke3 {[%clk 0:00:42.2]} 38... Rh2
{[%clk 0:00:11.7]} 39. Rxb5 {[%clk 0:00:42.6]} 39... Rxh3+ {[%clk 0:00:13]} 40.
Kd4 {[%clk 0:00:44]} 40... Rh4+ {[%clk 0:00:14.3]} 41. Ke5 {[%clk 0:00:44.8]}
41... Kf7 {[%clk 0:00:14.6]} 42. Rb7+ {[%clk 0:00:45.7]} 42... Kg8 {[%clk
0:00:15.7]} 43. Rc7 {[%clk 0:00:47.3]} 43... Rh1 {[%clk 0:00:15.1]} 44. b5
{[%clk 0:00:48.5]} 44... Rb1 {[%clk 0:00:16.7]} 45. c4 {[%clk 0:00:50.1]} 45...
Kh7 {[%clk 0:00:18.2]} 46. Rc6 {[%clk 0:00:51.2]} 46... Re1+ {[%clk 0:00:15.9]}
47. Kd6 {[%clk 0:00:52.4]} 47... Rd1+ {[%clk 0:00:17.1]} 48. Kc7 {[%clk
0:00:53.6]} 48... Rf1 {[%clk 0:00:18]} 49. Rc5 {[%clk 0:00:55.1]} 49... Rxf5
{[%clk 0:00:19.9]} 50. Rxf5 {[%clk 0:00:56.3]} 1-0

[Event "*** Titled Tuesday Blitz"]
[Site "Chess.com"]
[Date "2020.02.04"]
[Round "5"]
[White "Mikhail_Golubev"]
[Black "MisiekZielony"]
[Result "0-1"]
[WhiteElo "2539"]
[BlackElo "2358"]
[TimeControl "180+2"]
[EndTime "14:06:40 PST"]
[Termination "MisiekZielony won by resignation"]

1. e4 {[%clk 0:03:01.9]} 1... Nf6 {[%clk 0:03:01.1]} 2. e5 {[%clk 0:03:02.1]}
2... Nd5 {[%clk 0:03:01.9]} 3. d4 {[%clk 0:03:03.2]} 3... d6 {[%clk 0:03:03]} 4.
Nf3 {[%clk 0:03:04.2]} 4... Bg4 {[%clk 0:03:03.6]} 5. Be2 {[%clk 0:03:03.5]}
5... e6 {[%clk 0:03:04.5]} 6. c4 {[%clk 0:02:53.6]} 6... Nb6 {[%clk 0:03:04.2]}
7. Nc3 {[%clk 0:02:51.8]} 7... Be7 {[%clk 0:03:04.8]} 8. O-O {[%clk 0:02:48]}
8... O-O {[%clk 0:03:05.9]} 9. h3 {[%clk 0:02:45.3]} 9... Bh5 {[%clk 0:03:05.2]}
10. Be3 {[%clk 0:02:42.9]} 10... a6 {[%clk 0:03:06.4]} 11. exd6 {[%clk
0:02:41.4]} 11... cxd6 {[%clk 0:03:06.6]} 12. b4 {[%clk 0:02:38.5]} 12... Bxf3
{[%clk 0:03:03.9]} 13. Bxf3 {[%clk 0:02:36.9]} 13... Nxc4 {[%clk 0:03:03.5]} 14.
Bxb7 {[%clk 0:02:16.9]} 14... Ra7 {[%clk 0:03:03.9]} 15. Be4 {[%clk 0:02:16.1]}
15... d5 {[%clk 0:03:02.2]} 16. Bd3 {[%clk 0:02:14.9]} 16... Nxe3 {[%clk
0:02:56.6]} 17. fxe3 {[%clk 0:02:15.4]} 17... Bxb4 {[%clk 0:02:56.2]} 18. Ne2
{[%clk 0:02:14.9]} 18... Qg5 {[%clk 0:02:38]} 19. Nf4 {[%clk 0:02:13.5]} 19...
Nd7 {[%clk 0:02:20.1]} 20. Qb1 {[%clk 0:02:03.6]} 20... Bd2 {[%clk 0:02:13.1]}
21. Bxh7+ {[%clk 0:01:49.1]} 21... Kh8 {[%clk 0:02:13.1]} 22. Qd3 {[%clk
0:01:42.2]} 22... Bxe3+ {[%clk 0:02:04.5]} 23. Qxe3 {[%clk 0:01:42]} 23... Kxh7
{[%clk 0:02:05.1]} 24. Rf3 {[%clk 0:01:38.7]} 24... Nf6 {[%clk 0:02:00.4]} 25.
Raf1 {[%clk 0:01:36]} 25... Qh6 {[%clk 0:01:43.5]} 26. g4 {[%clk 0:01:12.8]}
26... Ne4 {[%clk 0:01:40]} 27. h4 {[%clk 0:01:02.4]} 27... g6 {[%clk 0:00:29.2]}
28. g5 {[%clk 0:00:56.5]} 28... Qg7 {[%clk 0:00:29.2]} 29. Nxe6 {[%clk
0:00:54.4]} 29... fxe6 {[%clk 0:00:27.1]} 30. Rxf8 {[%clk 0:00:54.4]} 30... Re7
{[%clk 0:00:20.5]} 31. Kg2 {[%clk 0:00:47.7]} 31... Nd6 {[%clk 0:00:20.4]} 32.
Qe5 {[%clk 0:00:45]} 32... Nf5 {[%clk 0:00:19.6]} 33. Qxg7+ {[%clk 0:00:44.4]}
33... Kxg7 {[%clk 0:00:20.4]} 34. Rf6 {[%clk 0:00:30.1]} 34... Ne3+ {[%clk
0:00:21.3]} 35. Kg1 {[%clk 0:00:29.3]} 35... Nxf1 {[%clk 0:00:21.8]} 36. Kxf1
{[%clk 0:00:30.6]} 36... Rf7 {[%clk 0:00:22]} 37. Rxf7+ {[%clk 0:00:29.5]} 37...
Kxf7 {[%clk 0:00:22.2]} 38. Kf2 {[%clk 0:00:29.8]} 38... e5 {[%clk 0:00:23.1]}
39. dxe5 {[%clk 0:00:24.9]} 39... Ke6 {[%clk 0:00:23.7]} 40. Kf3 {[%clk
0:00:12.8]} 40... Kxe5 {[%clk 0:00:24]} 41. Kg4 {[%clk 0:00:13.9]} 41... d4
{[%clk 0:00:23.7]} 42. h5 {[%clk 0:00:12.6]} 42... gxh5+ {[%clk 0:00:24.1]} 43.
Kxh5 {[%clk 0:00:12.9]} 43... d3 {[%clk 0:00:25.1]} 44. g6 {[%clk 0:00:13.3]}
44... d2 {[%clk 0:00:25.8]} 45. g7 {[%clk 0:00:14.6]} 45... d1=Q+ {[%clk
0:00:24.6]} 46. Kg6 {[%clk 0:00:16]} 46... Qg1+ {[%clk 0:00:21.5]} 47. Kf7
{[%clk 0:00:16.9]} 47... Qf2+ {[%clk 0:00:22.2]} 0-1